fUSD/lending_fUSD_20240329
["ID","MTS","AMOUNT","RATE_DAILY","PERIOD"]
[320908249,1711696246304,-155.11,0.00047923,2]
[320908250,1711696246313,-152.39,0.00047978,2]
[320908251,1711696246323,-959.34,0.00047988,60]
[320908252,1711696246332,-8933.52611892,0.00048,4]
[320908253,1711696246341,-155.0,0.00048,15]
[320908254,1711696246351,-908.7928056,0.00048048,2]
[320908255,1711696246361,-5844.67711629,0.00048069,2]
[320908256,1711696246371,-155.11,0.00048112,2]
[320908257,1711696246380,-150.0,0.00048198,2]
[320908258,1711696246390,-150.0,0.00048198,2]
[320908259,1711696246399,-150.0,0.00048198,2]
[320908260,1711696246408,-150.0,0.00048198,2]
[320908261,1711696246417,-150.0,0.00048198,2]
[320908262,1711696246426,-150.0,0.00048198,2]
[320908263,1711696246435,-150.0,0.00048198,2]
[320908264,1711696246445,-150.0,0.00048198,2]
[320908265,1711696246454,-150.0,0.00048198,2]
[320908266,1711696246464,-150.0,0.00048198,2]
[320908267,1711696246473,-153.44,0.00048198,2]
[320908268,1711696246483,-155.11,0.00048301,2]
[320908269,1711696246492,-500.0,0.000484,17]
[320908270,1711696246501,-151.032916,0.00048448,99]
[320908271,1711696246511,-800.0,0.00048484,25]
[320908272,1711696246520,-161.22065688,0.00048484,13]
[320908273,1711696246529,-155.11,0.0004849,2]
[320908274,1711696246539,-342.49709869,0.000485,120]
[320908275,1711696246548,-730.0222719,0.000485,45]
[320908276,1711696246559,-1100.0,0.000485,17]
[320908277,1711696246571,-1600.0,0.000486,17]
[320908278,1711696246580,-150.0,0.00048623,7]
[320908279,1711696246589,-300.0,0.00048631,7]
[320908280,1711696246598,-150.0,0.0004864,7]
[320908281,1711696246610,-150.0,0.00048646,7]
[320908282,1711696246620,-155.11,0.00048679,2]
[320908283,1711696246631,-150.0,0.00048697,7]
[320908284,1711696246645,-1433.18962875,0.00048699,24]
[320908285,1711696246656,-151.80491433,0.00048699,39]
[320908286,1711696246665,-2200.0,0.000487,17]
[320908287,1711696246674,-150.12,0.000487,120]
[320908288,1711696246684,-150.12,0.000487,120]
[320908289,1711696246693,-150.12,0.000487,120]
[320908290,1711696246702,-150.12,0.000487,120]
[320908291,1711696246712,-150.12,0.000487,120]
[320908292,1711696246721,-150.0,0.00048704,7]
[320908293,1711696246731,-303.12736747,0.00048739,7]
[320908294,1711696246740,-1500.0,0.00048746,7]
[320908295,1711696246749,-1407.25970424,0.00048748,2]
[320908296,1711696246759,-156.63077706,0.00048764,2]
[320908297,1711696246769,-5000.0,0.00048767,5]
[320908298,1711696246778,-6717.21932057,0.00048777,4]
[320908299,1711696246788,-5000.0,0.00048778,120]
[320908300,1711696246797,-150.12,0.00048788,120]
[320908301,1711696246806,-150.12,0.00048788,120]
[320908302,1711696246816,-150.12,0.00048788,120]
[320908303,1711696246826,-150.12,0.00048788,120]
[320908304,1711696246835,-150.12,0.00048788,120]
[320908305,1711696246844,-150.12,0.0004879,120]
[320908306,1711696246854,-150.12,0.0004879,120]
[320908307,1711696246866,-150.12,0.0004879,120]
[320908308,1711696246876,-150.12,0.0004879,120]
[320908309,1711696246885,-150.12,0.0004879,120]
[320908310,1711696246895,-150.12,0.0004879,120]
[320908311,1711696246904,-181.82897829,0.00048796,4]
[320908312,1711696246913,-894.4879732,0.00048796,2]
[320908313,1711696246923,-9886.89731709,0.00048797,2]
[320908314,1711696246934,-363.22524146,0.00048797,120]
[320908315,1711696246943,-307.68911322,0.00048797,7]
[320908316,1711696246952,-99805.05662435,0.00048798,4]
[320908317,1711696929095,10191.90967001,0.00035,5]
[320908321,1711697359142,-720.8062774,0.00037506,4]
[320908322,1711697359162,-133.53804052,0.00037507,2]
[320908332,1711697431809,-81.46195948,0.00037507,2]
[320908333,1711697431819,-193.5,0.00037511,2]
[320908334,1711697431827,-534.70348992,0.00037658,2]
[320908335,1711697431839,-377.37589608,0.00037658,2]
[320908336,1711697431847,-159.03281031,0.00040621,2]
[320908337,1711697431857,-367.14224956,0.00040721,2]
[320908338,1711697431869,-3494.75123709,0.00040721,2]
[320908339,1711697431916,-19673.18266682,0.00040721,2]
[320908340,1711697431940,-333.00794755,0.00040721,2]
[320908341,1711697432047,-1581.13699898,0.00040721,2]
[320908342,1711697432056,-807.38406359,0.0004082,4]
[320908343,1711697432069,-5265.96935696,0.0004082,4]
[320908344,1711697432078,-992.45769905,0.00040821,4]
[320908345,1711697432088,-348.17,0.00045028,2]
[320908346,1711697432097,-250.0,0.0004607,2]
[320908347,1711697432106,-499.99,0.00046278,2]
[320908348,1711697432116,-452.23,0.00046278,2]
[320908349,1711697432125,-3148.33989645,0.00046356,4]
[320908350,1711697432135,-201.32413482,0.00046575,30]
[320908351,1711697432144,-153.11361921,0.00046751,30]
[320908352,1711697432153,-339.42819,0.00046836,30]
[320908353,1711697432162,-230.81707,0.00046836,30]
[320908354,1711697432171,-1863.25,0.00046894,2]
[320908355,1711697432180,-1913.8077125,0.00046923,2]
[320908356,1711697432189,-250.0,0.00046924,112]
[320908357,1711697432198,-22999.43,0.00046933,2]
[320908358,1711697432221,-182.06,0.00046945,15]
[320908359,1711697432231,-834.79,0.00046947,120]
[320908360,1711697432241,-1568.32,0.00046955,2]
[320908361,1711697432251,-607.61,0.00046964,2]
[320908362,1711697432261,-481.17,0.0004699,120]
[320908363,1711697432272,-1000.0,0.00046992,2]
[320908364,1711697432282,-348.17,0.00047292,2]
[320908365,1711697432292,-155.11,0.00047299,2]
[320908366,1711697432302,-159.5903989,0.00047354,30]
[320908367,1711697432312,-339.42819,0.00047421,30]
[320908368,1711697432323,-155.11,0.00047915,2]
[320908369,1711697432333,-155.0,0.00048,15]
[320908370,1711697432342,-204.397357,0.00048,25]
[320908371,1711697432353,-801.93879353,0.00048,3]
[320908372,1711697432362,-339.42819,0.00048007,30]
[320908373,1711697432374,-157.447304,0.00048174,30]
[320908374,1711697432386,-500.0,0.00048219,14]
[320908375,1711697432396,-500.0,0.00048369,14]
[320908376,1711697432406,-200.0,0.000484,17]
[320908377,1711697432416,-151.032916,0.00048448,98]
[320908378,1711697432426,-688.492377,0.00048489,25]
[320908379,1711697432436,-162.077793,0.000485,9]
[320908380,1711697432446,-500.0,0.000485,17]
[320908381,1711697432457,-500.0,0.00048518,14]
[320908382,1711697432468,-155.11,0.00048532,2]
[320908383,1711697432478,-339.42819,0.00048592,30]
[320908384,1711697432489,-800.0,0.000486,17]
[320908385,1711697432501,-500.0,0.00048667,14]
[320908386,1711697432511,-1972.04097165,0.00048699,2]
[320908387,1711697432523,-1753.40313495,0.00048699,2]
[320908388,1711697432532,-161.22065688,0.00048699,13]
[320908389,1711697432542,-5000.0,0.000487,120]
[320908390,1711697432552,-220.45482048,0.000487,20]
[320908391,1711697432563,-1100.0,0.000487,17]
[320908392,1711697432572,-302.9600358,0.000487,2]
[320908393,1711697432581,-8933.52611892,0.00048747,4]
[320908394,1711697432590,-500.0,0.0004877,120]
[320908395,1711697432599,-500.0,0.0004877,120]
[320908396,1711697432609,-500.0,0.0004877,120]
[320908397,1711697432619,-500.0,0.0004877,120]
[320908398,1711697432630,-500.0,0.0004878,120]
[320908399,1711697432640,-500.0,0.0004878,120]
[320908400,1711697432650,-485.41526538,0.0004878,120]
[320908401,1711697432935,-2500.0,0.0004878,2]
[320908402,1711697432946,-1105.79476143,0.0004878,25]
[320908403,1711697432960,-207.96239823,0.0004878,25]
[320908404,1711697432970,-165.74382266,0.0004878,2]
[320908405,1711697432980,-1922.48358421,0.0004878,2]
[320908406,1711697432993,-297.67032933,0.0004878,2]
[320908407,1711697433003,-150.13,0.0004879,120]
[320908408,1711697433012,-150.13,0.0004879,120]
[320908409,1711697433022,-150.13,0.0004879,120]
[320908410,1711697433032,-5130.6912576,0.00048792,2]
[320908411,1711697433041,-155.45106949,0.00048796,2]
[320908412,1711697433051,-354.39292034,0.00048796,4]
[320908413,1711697433060,-754.83421241,0.00048797,2]
[320908414,1711697433071,-4108.9578346,0.00048797,4]
[320908415,1711697433081,-1576.71159625,0.00048797,5]
[320908416,1711697433090,-182610.60141142,0.00048798,4]
[320908417,1711697433100,-375.8908722,0.00048799,4]
[320908418,1711697433110,-655.89481814,0.00048799,2]
[320908419,1711697433121,-217.2834418,0.00048799,4]
[320908420,1711697433131,-895.04067562,0.00048799,60]
[320908421,1711697433142,-79772.71293878,0.000488,19]
[320908422,1711697433176,-543.18967284,0.000488,19]
[320908441,1711697437746,-700.91748295,0.00048797,2]
[320908442,1711697437755,-137459.39647396,0.000488,19]
[320908443,1711697437802,-31639.81327983,0.000488,19]
[320908444,1711697437814,-995.55792962,0.000488,19]
[320908445,1711697437969,-42847.80827974,0.000488,19]
[320908446,1711697437982,-1230.77947627,0.000488,19]
[320908447,1711697438024,-42188.33978367,0.000488,19]
[320908456,1711697439956,-29393.89738208,0.000488,19]
[320908481,1711697442818,-4108.9578346,0.000487,120]
[320908483,1711697442988,-891.0421654,0.000487,120]
[320908484,1711697442997,-650.85194846,0.00048798,2]
[320908485,1711697443007,-27346.92742031,0.000488,19]
[320908486,1711697443016,-887.64917301,0.000488,7]
[320908487,1711697443026,-219.41,0.000488,120]
[320908488,1711697443035,-165.0,0.000488,2]
[320908489,1711697443045,-1400.0,0.000488,17]
[320908490,1711697443054,-500.0,0.00048817,14]
[320908491,1711697443063,-150.13,0.00048821,120]
[320908492,1711697443073,-150.13,0.00048825,120]
[320908493,1711697443082,-18125.0,0.00048831,2]
[320908494,1711697443091,-500.0,0.00048831,60]
[320908495,1711697443099,-18125.0,0.00048832,2]
[320908496,1711697443108,-18125.0,0.00048833,2]
[320908497,1711697443118,-18125.0,0.00048834,2]
[320908498,1711697443126,-3560.72065925,0.00048835,2]
[320908499,1711697443174,-179.0,0.000368,2]
[320908500,1711697443183,-5616.12348749,0.00048835,2]
[320908513,1711697445845,-161.0,0.000368,2]
[320908514,1711697445855,-604.36252357,0.00048798,2]
[320908515,1711697445865,-8948.15585326,0.00048835,2]
[320908516,1711697445874,-18125.02,0.00048836,2]
[320908517,1711697445884,-5505.9951935,0.00048847,2]
[320908518,1711697445893,-5881.2991293,0.00048847,2]
[320908519,1711697445905,-730.0,0.0004885,15]
[320908520,1711697445914,-462.0,0.0004885,15]
[320908521,1711697445923,-730.0,0.0004886,15]
[320908522,1711697445933,-462.0,0.0004886,15]
[320908523,1711697445943,-150.13,0.0004886,120]
[320908524,1711697445952,-730.0,0.0004887,15]
[320908525,1711697445969,-462.0,0.0004887,15]
[320908526,1711697445986,-15406.46699642,0.0004887,2]
[320908531,1711698217363,198.22324811,0.00028,2]
[320908536,1711698320169,-800.7316329,0.0003988,7]
[320908537,1711698320193,-138409.71246203,0.00039998,4]
[320908550,1711698564234,-150.8675,0.00039899,2]
[320908551,1711698564257,-168.26556353,0.000399,2]
[320908552,1711698564280,-10.0918914,0.00039998,4]
[320908573,1711698631923,-307.211855,0.00039998,4]
[320908576,1711698631935,-483.4278865,0.00039998,4]
[320908578,1711698631945,-991.06300075,0.00039999,4]
[320908580,1711698631954,-2060.21840175,0.0004,2]
[320908582,1711698631969,-1008.9263289,0.0004,2]
[320908602,1711698632409,-432.05275595,0.0004,2]
[320908603,1711698632423,-609.86344662,0.0004,2]
[320908604,1711698632435,-2668.56160091,0.0004,2]
[320908605,1711698632446,-2911.32450001,0.0004,2]
[320908606,1711698632458,-676.8742553,0.0004,2]
[320908607,1711698632492,-34938.840846,0.0004,2]
[320908608,1711698632504,-3360.8820057,0.0004,2]
[320908609,1711698632515,-1503.77413853,0.0004,2]
[320908610,1711698632525,-1991.27586147,0.0004,2]
[320908611,1711698632537,-11.63426866,0.0004,2]
[320908612,1711698632546,-311.40936294,0.00044785,2]
[320908613,1711698632558,-1.94063706,0.00044785,2]
[320908614,1711698632567,-153.11361921,0.0004487,30]
[320908615,1711698632577,-159.87362637,0.00045575,30]
[320908616,1711698632586,-157.447304,0.00045781,30]
[320908617,1711698632596,-157.447304,0.00045912,30]
[320908618,1711698632605,-400.97,0.00046595,120]
[320908619,1711698632614,-499.99,0.00046595,2]
[320908620,1711698632624,-392.0,0.000466,2]
[320908621,1711698632633,-163.37425378,0.00046606,2]
[320908626,1711698632861,-351.10664586,0.00046606,2]
[320908627,1711698632883,-615.25441392,0.00046606,2]
[320908628,1711698632895,-515.39468644,0.00046606,2]
[320908629,1711698632904,-28.62531356,0.00046643,15]
[320908630,1711698632941,-142.05468644,0.00046643,15]
[320908631,1711698632951,-467.1,0.00046665,2]
[320908632,1711698632960,-9275.72,0.0004667,60]
[320908633,1711698632969,-500.73,0.00046676,2]
[320908634,1711698632978,-200.0,0.00046676,2]
[320908635,1711698632988,-404.06,0.00046691,2]
[320908636,1711698632997,-250.0,0.00046703,120]
[320908637,1711698633006,-250.0,0.00046726,112]
[320908638,1711698633016,-175.04260943,0.00046772,30]
[320908639,1711698633025,-175.3,0.00046818,120]
[320908640,1711698633035,-200.0,0.00046861,2]
[320908641,1711698633044,-332.77,0.0004693,2]
[320908642,1711698633054,-399.17144934,0.00047,30]
[320908643,1711698633064,-313.35,0.00047049,2]
[320908644,1711698633074,-332.77,0.00047059,2]
[320908645,1711698633083,-3634.26,0.00047083,2]
[320908646,1711698633093,-155.41,0.00047123,2]
[320908647,1711698633103,-200.0,0.00047175,2]
[320908648,1711698633112,-332.77,0.00047188,2]
[320908649,1711698633123,-533.366,0.00047216,2]
[320908650,1711698633132,-332.77,0.00047316,2]
[320908651,1711698633141,-1224.26,0.00047323,120]
[320908652,1711698633150,-155.41,0.00047358,2]
[320908653,1711698633159,-332.77,0.00047445,2]
[320908654,1711698633170,-332.77,0.00047574,2]
[320908655,1711698633179,-332.77,0.00047702,2]
[320908656,1711698633189,-159.87362637,0.00047743,30]
[320908657,1711698633199,-152.0,0.00047828,3]
[320908658,1711698633208,-332.77,0.00047831,2]
[320908659,1711698633218,-158.12704685,0.00047896,30]
[320908660,1711698633229,-332.77,0.0004796,2]
[320908661,1711698633239,-241.74720211,0.00048,15]
[320908662,1711698633248,-500.0,0.00048,120]
[320908663,1711698633258,-499.999999,0.00048,2]
[320908664,1711698633267,-1000.0,0.00048,31]
[320908665,1711698633277,-10000.0,0.00048,14]
[320908666,1711698633286,-159.87362637,0.00048044,30]
[320908667,1711698633297,-332.77,0.00048089,2]
[320908668,1711698633307,-332.77,0.00048217,2]
[320908669,1711698633316,-332.77,0.00048346,2]
[320908670,1711698633326,-518.0,0.00048438,30]
[320908671,1711698633335,-151.032916,0.00048448,97]
[320908672,1711698633345,-332.77,0.00048475,2]
[320908673,1711698633354,-159.87362637,0.00048544,30]
[320908674,1711698633364,-332.77,0.00048603,2]
[320908675,1711698633374,-150.0,0.0004868,2]
[320908676,1711698633383,-4784.20111888,0.000487,120]
[320908677,1711698633393,-518.0,0.00048712,30]
[320908678,1711698633402,-1578.06282141,0.00048729,2]
[320908679,1711698633412,-685.16590744,0.00048729,2]
[320908680,1711698633421,-332.77,0.00048732,2]
[320908681,1711698633430,-5000.0,0.0004878,2]
[320908682,1711698633439,-306.37553717,0.0004878,2]
[320908683,1711698633449,-1204.27739641,0.0004878,25]
[320908684,1711698633458,-375.22572184,0.0004878,2]
[320908685,1711698633467,-219.41,0.000488,120]
[320908686,1711698633476,-157782.45191735,0.000488,3]
[320908706,1711698637957,-1000.0,0.00047878,2]
[320908708,1711698637967,-853.60037926,0.000488,3]
[320908710,1711698637979,-146575.74875531,0.000488,3]
[320908711,1711698637991,-9605.66578088,0.000488,3]
[320908713,1711698638003,-3400.41994581,0.000488,3]
[320908714,1711698638014,-758.11221771,0.000488,3]
[320908715,1711698638129,-1981.1914489,0.000488,3]
[320908716,1711698638245,-1385.31281785,0.000488,3]
[320908717,1711698638256,-1481.18714683,0.000488,3]
[320908718,1711698638269,-2039.97068647,0.000488,3]
[320908719,1711698638285,-2070.09377974,0.000488,3]
[320908720,1711698638297,-1540.57199321,0.000488,3]
[320908721,1711698638309,-480.21707981,0.000488,3]
[320908722,1711698638330,-9090.25,0.000488,3]
[320908723,1711698638342,-29165.06699305,0.000488,3]
[320908724,1711698638352,-1422.6947208,0.00048829,4]
[320908726,1711698638361,-511.0,0.0004885,15]
[320908728,1711698638371,-323.0,0.0004885,15]
[320908730,1711698638380,-511.0,0.0004886,15]
[320908732,1711698638390,-323.0,0.0004886,15]
[320908733,1711698638398,-150.13,0.0004886,120]
[320908735,1711698638407,-332.77,0.00048861,2]
[320908737,1711698638416,-1291.7572697,0.00048867,2]
[320908739,1711698638429,-4286.4124254,0.00048867,2]
[320908741,1711698638439,-713.02382166,0.00048868,30]
[320908742,1711698638449,-621.76441279,0.00048868,4]
[320908744,1711698638458,-155.22877637,0.00048868,4]
[320908746,1711698638468,-1723.85842707,0.00048868,4]
[320908748,1711698638478,-406.68679982,0.00048869,4]
[320908749,1711698638488,-614.43675695,0.00048869,4]
[320908750,1711698638497,-607.68319677,0.00048869,2]
[320908751,1711698638507,-155.46952768,0.0004887,2]
[320908752,1711698638517,-150.13,0.0004887,120]
[320908753,1711698638526,-150.13,0.0004887,120]
[320908754,1711698638534,-150.13,0.0004887,120]
[320908755,1711698638543,-150.13,0.0004887,120]
[320908756,1711698638552,-511.0,0.0004887,15]
[320908757,1711698638562,-323.0,0.0004887,15]
[320908758,1711698638571,-1080.3988237,0.0004887,2]
[320908759,1711698638581,-603.074764,0.0004887,2]
[320908760,1711698638590,-3845.40547253,0.0004887,2]
[320908761,1711698638603,-15911.86165046,0.0004887,2]
[320908765,1711698638641,-2593.90743202,0.0004887,2]
[320908768,1711698638653,-2103.13055169,0.0004887,2]
[320908770,1711698638666,-744.08,0.0004887,2]
[320908782,1711698640061,-150.0,0.00048526,2]
[320908783,1711698640071,-1364.15890168,0.0004887,2]
[320908784,1711698640084,-1499.993764,0.0004887,2]
[320908785,1711698640142,-334.55680472,0.0004887,2]
[320908786,1711698640152,-748.88052485,0.0004887,120]
[320908787,1711698640162,-150.13,0.0004887,120]
[320908788,1711698640171,-150.13,0.0004887,120]
[320908789,1711698640188,-150.13,0.0004887,120]
[320908790,1711698640197,-150.13,0.0004887,120]
[320908791,1711698640207,-150.13,0.0004887,120]
[320908792,1711698640218,-150.13,0.0004887,120]
[320908793,1711698640229,-150.13,0.0004887,120]
[320908794,1711698640239,-150.13,0.0004887,120]
[320908795,1711698640249,-150.13,0.0004887,120]
[320908796,1711698640259,-150.13,0.0004887,120]
[320908797,1711698640268,-150.13,0.0004887,120]
[320908798,1711698640278,-150.13,0.0004887,120]
[320908799,1711698640288,-150.13,0.0004887,120]
[320908800,1711698640298,-150.13,0.0004887,120]
[320908801,1711698640512,-150.13,0.0004887,120]
[320908802,1711698640524,-150.13,0.0004887,120]
[320908803,1711698640535,-150.13,0.0004887,120]
[320908804,1711698640545,-150.13,0.0004887,120]
[320908805,1711698640556,-150.13,0.0004887,120]
[320908806,1711698640566,-150.13,0.0004887,120]
[320908807,1711698640576,-150.13,0.0004887,120]
[320908808,1711698640587,-150.13,0.0004887,120]
[320908809,1711698640597,-150.13,0.0004887,120]
[320908810,1711698640607,-150.13,0.0004887,120]
[320908811,1711698640617,-150.13,0.0004887,120]
[320908812,1711698640627,-150.13,0.0004887,120]
[320908813,1711698640637,-150.13,0.0004887,120]
[320908814,1711698640647,-150.13,0.0004887,120]
[320908815,1711698640657,-150.13,0.0004887,120]
[320908816,1711698640666,-150.13,0.0004887,120]
[320908817,1711698640679,-150.13,0.0004887,120]
[320908818,1711698640689,-150.13,0.0004887,120]
[320908819,1711698640699,-150.13,0.0004887,120]
[320908820,1711698640708,-150.13,0.0004887,120]
[320908821,1711698640717,-150.13,0.0004887,120]
[320908822,1711698640726,-150.13,0.0004887,120]
[320908823,1711698640735,-150.13,0.0004887,120]
[320908824,1711698640744,-150.13,0.0004887,120]
[320908825,1711698640753,-150.13,0.0004887,120]
[320908826,1711698640762,-150.13,0.0004887,120]
[320908827,1711698640772,-150.13,0.0004887,120]
[320908828,1711698640782,-150.13,0.0004887,120]
[320908829,1711698640791,-150.13,0.0004887,120]
[320908830,1711698640801,-150.13,0.0004887,120]
[320908831,1711698640810,-150.13,0.0004887,120]
[320908832,1711698640821,-150.13,0.0004887,120]
[320908833,1711698640831,-150.13,0.0004887,120]
[320908834,1711698640841,-150.13,0.0004887,120]
[320908835,1711698640851,-253.66383539,0.00048877,30]
[320908836,1711698640860,-150.0,0.00048877,30]
[320908837,1711698640869,-150.0,0.00048877,30]
[320908838,1711698640879,-150.0,0.00048877,30]
[320908839,1711698640888,-150.09043877,0.00048877,30]
[320908840,1711698640898,-150.0,0.00048877,30]
[320908841,1711698640907,-150.0,0.00048877,30]
[320908842,1711698640916,-150.0,0.00048877,30]
[320908843,1711698640928,-150.0,0.00048877,30]
[320908844,1711698640937,-291.79640005,0.00048877,30]
[320908845,1711698640946,-155.0,0.00048877,4]
[320908846,1711698640955,-414.6844583,0.00048877,2]
[320908847,1711698640965,-365.00835102,0.00048877,2]
[320908848,1711698640975,-7182.6863976,0.00048877,5]
[320908849,1711698640985,-431.05992528,0.00048878,2]
[320908850,1711698640995,-290.9387269,0.00048878,2]
[320908851,1711698641005,-406.08005128,0.00048878,4]
[320908852,1711698641014,-155.98756269,0.00048878,4]
[320908853,1711698641023,-277.37815344,0.00048878,4]
[320908854,1711698641033,-159.8631895,0.00048878,4]
[320908855,1711698641041,-705.34848774,0.00048879,4]
[320908856,1711698641050,-1000.0,0.00048879,120]
[320908857,1711698641060,-500.0,0.00048879,60]
[320908858,1711698641069,-150.0,0.00048879,7]
[320908859,1711698641078,-234.00705772,0.00048879,7]
[320908860,1711698641087,-159.0,0.0004888,7]
[320908861,1711698641096,-149200.30966689,0.0004888,15]
[320908862,1711698643064,-379.98,0.00045844,2]
[320908863,1711698643078,-187.60895139,0.00047942,2]
[320908873,1711698643323,-4993.99748518,0.00047942,2]
[320908874,1711698643337,-4324.08372568,0.00047942,2]
[320908875,1711698643349,-684.13906008,0.00047942,2]
[320908876,1711698643392,-3084.37077767,0.00047942,2]
[320908877,1711698643401,-1480.10260902,0.0004878,2]
[320908878,1711698643411,-15506.35998351,0.0004888,15]
[320908879,1711698643474,-4540.0,0.0004888,15]
[320908880,1711698643486,-1042.9,0.0004888,15]
[320908881,1711698643498,-2609.56,0.0004888,15]
[320908882,1711698643519,-931.13278959,0.0004888,15]
[320908883,1711698643530,-606.0,0.0004888,15]
[320908884,1711698643571,-101285.73154141,0.0004888,15]
[320908885,1711698643587,-1208.63916825,0.0004888,15]
[320908886,1711698643599,-3025.67160259,0.0004888,15]
[320908887,1711698643610,-3122.84506789,0.0004888,15]
[320908888,1711698643638,-1598.52458688,0.0004888,15]
[320908889,1711698643662,-3692.97388579,0.0004888,15]
[320908890,1711698643675,-7415.08365903,0.0004888,15]
[320908891,1711698643684,-10473.49466892,0.0004888,2]
[320908892,1711698643793,-479382.15551475,0.0004888,2]
[320908895,1711698643808,-196063.16787544,0.0004888,2]
[320908897,1711698643820,-28300.51983094,0.0004888,2]
[320908898,1711698643833,-5167.6555805,0.0004888,2]
[320908906,1711698646364,-252.0,0.00047942,120]
[320908907,1711698646374,-3118.50368523,0.0004888,2]
[320908908,1711698646385,-416.69182954,0.0004888,2]
[320908909,1711698646397,-35057.5,0.0004888,2]
[320908910,1711698646408,-3136.82796163,0.0004888,2]
[320908911,1711698646445,-13116.35778416,0.0004888,2]
[320908912,1711698646456,-12285.45831732,0.0004888,2]
[320908914,1711698646536,-18453.50087886,0.0004888,2]
[320908917,1711698646548,-13406.30917255,0.0004888,2]
[320908919,1711698646560,-16989.91276986,0.0004888,2]
[320908921,1711698646572,-186836.91194942,0.0004888,2]
[320908924,1711698646592,-1830.57775057,0.0004888,2]
[320908926,1711698646604,-9107.27228293,0.0004888,2]
[320908931,1711698646637,-601408.57604384,0.0004888,2]
[320908933,1711698646649,-294.83806546,0.0004888,2]
[320908936,1711698646661,-5907.12505744,0.0004888,2]
[320908940,1711698646743,-1583.12167693,0.0004888,2]
[320908961,1711698927989,-5828.94105528,0.00039998,4]
[320908975,1711699121698,350.0,0.00029,3]
[320908976,1711699122842,400.0,0.00031,3]
[320908977,1711699230943,569.27101809,0.00031,4]
[320908978,1711699660116,-763.55321586,0.00036842,7]
[320908979,1711699668421,-150.0,0.00039697,120]
[320908980,1711699750132,-152.23,0.00036843,2]
[320908981,1711699750157,-129.24706757,0.00037461,2]
[320909009,1711699832464,-47.73293243,0.00037461,2]
[320909010,1711699832474,-975.71866545,0.00040836,2]
[320909011,1711699832484,-329.44113012,0.00040844,7]
[320909012,1711699832493,-466.21862966,0.00040845,2]
[320909013,1711699832503,-341.46461567,0.00040845,4]
[320909014,1711699832512,-906.42250436,0.00040845,2]
[320909015,1711699832523,-384.1924718,0.00040846,2]
[320909016,1711699832532,-499.99,0.00040846,2]
[320909017,1711699832543,-150.0,0.00040855,4]
[320909018,1711699832553,-1911.39970091,0.00040856,15]
[320909019,1711699832565,-2249.21521873,0.00040856,3]
[320909020,1711699832574,-40745.63354836,0.00040856,7]
[320909021,1711699832585,-13875.62336197,0.00040856,7]
[320909022,1711699832596,-356.38,0.00043711,2]
[320909023,1711699832606,-510.2760921,0.00045,110]
[320909024,1711699832616,-150.99,0.00045,2]
[320909025,1711699832627,-150.0,0.00045378,120]
[320909026,1711699832639,-159.87362639,0.00045415,30]
[320909027,1711699832649,-869.11,0.00045589,2]
[320909028,1711699832660,-4793.31750206,0.00045622,2]
[320909029,1711699832697,-771.16712368,0.00045622,2]
[320909030,1711699832709,-441.71813417,0.00045622,2]
[320909031,1711699832721,-4327.39956181,0.00045622,2]
[320909032,1711699832749,-917.55200967,0.00045622,2]
[320909033,1711699832761,-855.05376352,0.00045622,2]
[320909034,1711699832774,-11323.51190509,0.00045622,2]
[320909035,1711699832784,-356.38,0.00045975,2]
[320909036,1711699832793,-202.58,0.00046056,15]
[320909037,1711699832804,-166.52526131,0.00046098,30]
[320909038,1711699832813,-334.14,0.00046419,120]